bitfinex-derivatives/quotes_SOLF0:USTF0_20250905
["timestamp","ask_amount","ask_price","bid_price","bid_amount"]
[1757040966904,7.65,203.96,203.9,3.82651428]
[1757040967110,7.65,203.96,203.89,1.51364547]
[1757040967310,7.65,203.96,203.92,0.16]
[1757040967615,7.65,203.96,203.93,0.16]
[1757040969117,7.65,204.05,203.93,1.35364547]
[1757040969319,7.65,204.01,203.93,1.35364547]
[1757040969515,7.65,204.01,203.94,0.16]
[1757040970616,7.65,204.01,203.95,3.8259579]
[1757040970815,7.65,204.01,203.94,0.16]
[1757040972111,7.65,204.01,203.93,1.35364547]
[1757040972513,7.65,204.01,203.94,3.82783873]
[1757040972710,7.65,204.01,203.93,1.35364547]
[1757040973018,7.65,204.01,203.94,3.8267989]
[1757040973218,7.65,204.01,203.93,1.35364547]
[1757040974818,1.35364547,203.95,203.87,4.09320922]
[1757040975016,48.94375079,204.07,203.88,3.82765478]
[1757040975017,7.65,203.94,203.88,3.82765478]
[1757040975221,1.35364547,203.94,203.89,3.82765478]
[1757040975421,7.65,203.93,203.86,0.16]
[1757040975611,7.65,203.93,203.86,1.51364547]
[1757040977018,7.65,203.93,203.86,1.35364547]
[1757040981018,9.00364547,203.93,203.86,1.35364547]
[1757040981829,0.03276806,203.92,203.87,0.03250635]
[1757040982713,7.43,203.91,203.87,0.03250635]
[1757040983220,1.35364547,203.9,203.87,0.03250635]
[1757040983424,7.43,203.89,203.87,0.03250635]
[1757040983625,1.35364547,203.9,203.87,0.03250635]
[1757040984220,7.43,203.91,203.87,0.03250635]
[1757040984424,7.43,203.91,203.87,0.21250635]
[1757040985822,7.43,203.91,203.88,0.18]
[1757040986727,7.46276806,203.92,203.88,0.18]
[1757040987029,7.46276806,203.92,203.88,1.53364547]
[1757040988124,0.03276806,203.92,203.88,1.35364547]
[1757040988325,0.03276806,203.92,203.87,0.03250635]
[1757040989229,7.43,203.91,203.87,0.03250635]
[1757040989825,0.03276806,203.92,203.87,0.03250635]
[1757040990829,7.43,203.91,203.87,0.03250635]
[1757040991326,7.43,203.91,203.87,0.21250635]
[1757040992529,0.03276806,203.92,203.87,0.21250635]
[1757040992731,7.43,203.91,203.87,0.21250635]
[1757040993032,0.03276806,203.92,203.87,0.21250635]
[1757040993228,0.03276806,203.92,203.87,0.03250635]
[1757040993428,7.43,203.91,203.87,0.03250635]
[1757040994834,0.03276806,203.92,203.87,0.03250635]
[1757040995030,7.43,203.91,203.87,0.03250635]
[1757040995630,0.03276806,203.92,203.87,0.03250635]
[1757040996529,7.43,203.91,203.87,0.03250635]
[1757040997029,0.03276806,203.92,203.87,0.03250635]
[1757040997235,8.78364547,203.91,203.87,0.03250635]
[1757040997537,7.43,203.9,203.87,0.03250635]
[1757040997736,1.35364547,203.91,203.87,0.03250635]
[1757040997932,0.03276806,203.92,203.87,0.03250635]
[1757040998438,7.43,203.91,203.87,0.03250635]
[1757040998637,0.03276806,203.92,203.87,0.03250635]
[1757040998839,7.43,203.91,203.87,0.21250635]
[1757040999032,7.43,203.91,203.88,0.18]
[1757040999638,7.43,203.91,203.87,0.03250635]
[1757041000539,0.03276806,203.92,203.87,0.03250635]
[1757041000737,7.43,203.91,203.87,0.03250635]
[1757041001241,1.38641353,203.92,203.87,0.03250635]
[1757041001532,7.43,203.91,203.87,0.03250635]
[1757041001739,0.03276806,203.92,203.87,0.03250635]
[1757041001934,7.43,203.91,203.87,0.03250635]
[1757041002139,0.03276806,203.92,203.87,0.03250635]
[1757041002436,7.43,203.91,203.87,0.03250635]
[1757041002635,0.03276806,203.92,203.87,0.03250635]
[1757041003441,7.43,203.91,203.87,0.03250635]
[1757041003741,0.03276806,203.92,203.87,0.03250635]
[1757041003942,7.43,203.91,203.87,0.03250635]
[1757041004144,0.03276806,203.92,203.87,0.03250635]
[1757041004842,7.43,203.91,203.87,0.03250635]
[1757041005235,0.03276806,203.92,203.87,0.03250635]
[1757041005441,7.43,203.91,203.87,0.03250635]
[1757041005839,0.03276806,203.92,203.87,0.03250635]
[1757041006234,7.43,203.91,203.87,0.03250635]
[1757041006634,0.03276806,203.92,203.87,0.03250635]
[1757041007739,7.43,203.91,203.87,0.03250635]
[1757041007939,7.43,203.91,203.8,4.28721462]
[1757041008139,7.43,203.91,203.8,0.18]
[1757041008845,8.05,203.89,203.8,0.18]
[1757041009045,8.05,203.89,203.77,0.21]
[1757041009246,0.03439962,203.87,203.77,0.21]
[1757041009446,8.05,203.86,203.77,0.21]
[1757041011845,8.05,203.86,203.79,0.21]
[1757041013244,0.03439962,203.87,203.79,0.21]
[1757041013454,0.03439962,203.87,203.82,0.21]
[1757041014142,0.03439962,203.87,203.83,0.21]
[1757041014749,0.03439962,203.87,203.82,36.26]
[1757041015051,0.03439962,203.87,203.83,0.21]
[1757041015244,8.05,203.86,203.81,2.11776973]
[1757041015450,8.05,203.86,203.82,0.21]
[1757041016550,0.03439962,203.87,203.82,0.21]
[1757041017148,0.03439962,203.87,203.83,0.21]
[1757041017350,0.03439962,203.87,203.82,0.21]
[1757041018154,0.03439962,203.87,203.83,0.21]
[1757041018354,0.03439962,203.87,203.82,0.21]
[1757041018557,0.03439962,203.87,203.81,6.22498435]
[1757041018755,0.03439962,203.87,203.82,0.21]
[1757041019149,0.03439962,203.87,203.81,6.22498435]
[1757041019357,0.03439962,203.87,203.82,0.21]
[1757041019753,0.03439962,203.87,203.82,4.10721462]
[1757041019958,0.03439962,203.87,203.84,0.21]
[1757041020158,0.03439962,203.87,203.83,0.21]
[1757041020354,0.03439962,203.87,203.82,4.10721462]
[1757041020554,0.03439962,203.87,203.83,0.21]
[1757041020854,0.03439962,203.87,203.82,4.10721462]
[1757041021058,0.03439962,203.87,203.84,0.21]
[1757041021759,8.08439962,203.87,203.84,0.21]
[1757041022553,0.03439962,203.87,203.82,0.21]
[1757041022854,0.03439962,203.87,203.84,0.21]
[1757041023249,0.03439962,203.87,203.83,0.21]
[1757041024158,0.03439962,203.87,203.82,4.11017826]
[1757041024755,0.03439962,203.87,203.83,0.21]
[1757041025056,0.03439962,203.87,203.82,4.11017826]
[1757041025260,0.03439962,203.87,203.83,0.21]
[1757041025460,0.03439962,203.87,203.85,0.21]
[1757041025656,0.03439962,203.87,203.86,0.21]
[1757041029165,8.05,203.94,203.86,0.21]
[1757041029464,8.05,203.94,203.87,2.11776973]
[1757041029964,8.05,203.94,203.88,0.21]
[1757041030763,8.05,204.02,203.91,0.21]
[1757041035167,8.05,204.02,203.9,2.11776973]
[1757041038267,8.05,204.02,203.9,2.31776973]
[1757041040972,10.16776973,204.02,203.87,2.31776973]
[1757041042171,10.16776973,204.02,203.88,0.2]
[1757041042775,8.05,204.02,203.88,0.2]
[1757041042975,8.05,204.02,203.91,0.2]
[1757041049979,8.05,204.02,203.9,2.11776973]
[1757041052180,8.05,204.02,203.9,2.31776973]
[1757041052881,8.05,204.02,203.91,0.2]
[1757041058884,25.19776973,204.07,203.88,16.05017826]
[1757041058885,7.42,204.03,203.89,2.11776973]
[1757041060488,7.42,204.03,203.88,0.2]
[1757041060689,7.42,204.0,203.88,0.2]
[1757041061490,7.42,203.96,203.89,1.35477301]
[1757041063887,7.42,203.98,203.91,1.35477301]
[1757041065590,0.03251395,203.97,203.92,0.03175386]
[1757041066287,7.42,203.96,203.92,0.03175386]
[1757041066482,0.03251395,203.97,203.92,0.03175386]
[1757041067283,7.42,203.96,203.92,0.03175386]
[1757041067485,0.03251395,203.97,203.92,0.03175386]
[1757041068189,7.59,203.96,203.92,0.03175386]
[1757041068487,0.03251395,203.97,203.92,0.03175386]
[1757041068682,7.59,203.96,203.92,0.03175386]
[1757041069289,0.03251395,203.97,203.92,0.23175386]
[1757041069487,7.59,203.96,203.93,1.55477301]
[1757041070897,0.03251395,203.97,203.93,1.35477301]
[1757041071094,7.59,203.96,203.93,1.35477301]
[1757041072799,0.03251395,203.97,203.93,1.35477301]
[1757041072991,7.59,203.96,203.93,1.35477301]
[1757041073400,0.03251395,203.97,203.93,1.35477301]
[1757041073795,0.03251395,203.97,203.92,1.38652687]
[1757041073997,7.59,203.96,203.93,0.2]
[1757041074603,0.03251395,203.97,203.95,0.2]
[1757041074800,0.03251395,203.97,203.96,1.35477301]
[1757041075305,0.03251395,203.97,203.94,1.35477301]
[1757041075503,7.59,203.96,203.94,1.35477301]
[1757041075805,7.62251395,203.97,203.94,1.55477301]
[1757041076002,7.59,203.96,203.94,1.35477301]
[1757041076903,7.59,203.96,203.94,1.55477301]
[1757041077101,0.03251395,203.97,203.94,1.55477301]
[1757041078705,7.62251395,203.97,203.94,1.55477301]
[1757041081808,7.62251395,203.97,203.94,0.2]
[1757041082013,7.59,203.96,203.94,1.55477301]
[1757041082309,0.03251395,203.97,203.92,4.14193212]
[1757041082512,0.03251395,203.97,203.92,0.03175386]
[1757041082912,7.59,203.96,203.92,0.03175386]
[1757041083614,0.03251395,203.97,203.92,0.03175386]
[1757041084815,7.59,203.96,203.92,0.03175386]
[1757041085015,7.59,203.96,203.93,1.35477301]
[1757041085418,7.59,203.96,203.93,1.55477301]
[1757041085813,0.03251395,203.97,203.95,1.55477301]
[1757041086013,0.03251395,203.97,203.96,0.2]
[1757041091422,7.62251395,203.97,203.95,1.35477301]
[1757041092321,7.62251395,203.97,203.95,1.55477301]
[1757041093221,0.03251395,203.97,203.95,1.55477301]
[1757041094016,0.03251395,203.97,203.96,0.2]
[1757041100025,7.44,204.04,203.96,0.2]
[1757041100221,7.44,204.04,204.02,1.35477301]
[1757041101426,1.35477301,204.11,204.02,1.35477301]
[1757041101626,7.44,204.1,204.02,1.35477301]
[1757041110522,1.35477301,204.09,204.01,0.03295457]
[1757041110728,7.44,204.06,204.01,0.03295457]
[1757041110929,7.44,204.06,203.99,1.35477301]
[1757041111229,7.44,204.06,204.01,0.03374458]
[1757041112527,1.35477301,204.07,204.01,0.03374458]
[1757041112731,7.44,204.08,204.01,0.03374458]
[1757041113028,7.44,204.08,203.99,1.54477301]
[1757041113426,7.44,204.08,204.02,0.03297756]
[1757041121234,7.44,204.08,204.02,1.38775057]
[1757041122327,7.44,204.08,204.04,1.35477301]
[1757041122536,7.44,204.12,204.04,1.54477301]
[1757041122734,7.44,204.12,204.04,1.35477301]
[1757041123132,7.44,204.12,204.06,0.03630708]
[1757041143254,12.93829068,204.12,204.06,0.03630708]
[1757041145952,13.40829068,204.1,204.06,0.03630708]
[1757041146655,7.91,204.08,204.06,0.03630708]
[1757041147054,7.91,204.09,204.06,0.03630708]
[1757041147755,5.49829068,204.11,204.06,0.03630708]
[1757041147962,7.91,204.11,204.06,0.03630708]
[1757041155163,73.03829068,204.13,204.06,0.03630708]
[1757041155359,7.91,204.12,204.06,0.03630708]
[1757041157761,13.40829068,204.12,204.06,0.03630708]
[1757041163167,7.91,204.12,204.06,0.03630708]
[1757041163465,13.40829068,204.12,204.06,0.03630708]
[1757041167669,7.91,204.12,204.06,0.03630708]
[1757041173873,7.9,204.14,204.07,0.22]
[1757041177580,7.9,204.14,204.06,0.03630708]
[1757041178582,7.9,204.12,204.06,0.03630708]
[1757041185581,1.35296966,204.1,204.06,0.03630708]
[1757041185989,7.9,204.09,204.06,0.03630708]
[1757041186383,7.9,204.11,204.06,0.03630708]
[1757041188288,1.35296966,204.12,204.06,0.03630708]
[1757041188489,7.84,204.11,204.06,0.03630708]
[1757041190985,7.84,204.11,204.06,0.21630708]
[1757041191189,7.84,204.11,204.06,0.03630708]
[1757041191893,1.35296966,204.12,204.06,0.03630708]
[1757041192093,7.84,204.11,204.06,0.03630708]
[1757041192591,1.35296966,204.12,204.06,0.03630708]
[1757041192891,7.84,204.11,204.06,0.03630708]
[1757041193090,1.35296966,204.12,204.06,0.03630708]
[1757041193487,7.84,204.11,204.06,0.03630708]
[1757041193985,1.35296966,204.12,204.06,0.03630708]
[1757041194385,7.84,204.11,204.06,0.03630708]
[1757041194590,1.35296966,204.12,204.06,0.03630708]
[1757041194790,7.84,204.11,204.06,0.03630708]
[1757041195194,1.35296966,204.12,204.06,0.03630708]
[1757041195395,7.84,204.11,204.06,0.03630708]
[1757041195894,1.35296966,204.12,204.06,0.03630708]
[1757041196191,7.84,204.11,204.06,0.03630708]
[1757041197695,13.33829068,204.17,204.09,1.35296966]
[1757041197894,13.33829068,204.17,204.09,1.53296966]
[1757041197895,7.84,204.17,204.09,1.53296966]
[1757041198095,7.84,204.15,204.06,1.53296966]
[1757041198290,7.84,204.13,204.11,0.03739352]
[1757041198592,8.24743602,204.21,204.11,0.03739352]
[1757041198593,1.35296966,204.14,204.11,0.03739352]
[1757041198995,7.84,204.13,204.11,0.03739352]
[1757041199299,7.84,204.13,204.12,3.84920308]
[1757041199491,7.84,204.15,204.11,0.03739352]
[1757041199894,7.84,204.13,204.11,0.03739352]
[1757041200090,1.35296966,204.14,204.11,0.03739352]
[1757041201094,7.84,204.13,204.11,0.03739352]
[1757041201299,1.35296966,204.14,204.11,0.03739352]
[1757041201500,7.84,204.13,204.11,0.03739352]
[1757041201690,1.35296966,204.14,204.11,0.03739352]
[1757041201894,7.84,204.13,204.11,0.03739352]
[1757041202600,9.19296966,204.12,204.11,0.03739352]
[1757041203200,7.84,204.12,204.11,0.03739352]
[1757041208005,7.84,204.12,204.03,0.18]
[1757041208306,9.19296966,204.12,204.04,3.85058271]
[1757041208504,9.19296966,204.12,204.03,0.18]
[1757041208505,9.19296966,204.12,204.05,3.85058271]
[1757041208698,9.19296966,204.12,204.06,3.85058271]
[1757041208893,9.19296966,204.12,204.03,0.18]
[1757041209095,9.19296966,204.12,204.04,3.8514911]
[1757041209302,9.19296966,204.12,204.05,3.8514911]
[1757041209502,9.19296966,204.12,204.06,3.8514911]
[1757041209700,9.19296966,204.12,204.03,0.18]
[1757041210004,9.19296966,204.12,204.04,3.85152336]
[1757041210302,9.19296966,204.12,204.05,3.85152336]
[1757041210503,9.19296966,204.12,204.03,0.18]
[1757041210504,9.19296966,204.12,204.06,3.85152336]
[1757041210705,9.19296966,204.12,204.03,1.53296966]
[1757041210905,9.19296966,204.12,204.04,3.8515857]
[1757041211106,9.19296966,204.12,204.05,3.8515857]
[1757041211298,9.19296966,204.12,204.06,3.8515857]
[1757041211497,9.19296966,204.12,204.03,1.53296966]
[1757041211698,9.19296966,204.12,204.04,3.85166031]
[1757041211896,9.19296966,204.12,204.05,3.85166031]
[1757041212103,9.19296966,204.12,204.06,3.85166031]
[1757041212304,9.19296966,204.12,204.03,1.53296966]
[1757041212501,9.19296966,204.12,204.04,3.85163858]
[1757041212703,9.19296966,204.12,204.05,3.85163858]
[1757041212908,9.19296966,204.12,204.06,3.85163858]
[1757041213110,7.84,204.12,204.05,1.35296966]
[1757041213310,7.84,204.12,204.06,3.85164623]
[1757041213511,7.84,204.12,204.05,1.35296966]
[1757041213706,7.84,204.12,204.06,3.85169003]
[1757041213906,7.84,204.12,204.05,1.35296966]
[1757041214103,7.84,204.12,204.06,3.85169003]
[1757041214305,7.84,204.12,204.07,3.85169003]
[1757041214507,7.84,204.12,204.05,1.35296966]
[1757041214708,7.84,204.12,204.06,3.85102637]
[1757041214908,1.35296966,204.13,204.07,3.85102637]
[1757041215104,7.84,204.12,204.05,1.35296966]
[1757041215310,7.84,204.12,204.06,3.85108386]
[1757041215506,7.84,204.12,204.07,3.85108386]
[1757041215812,7.84,204.12,204.04,0.22]
[1757041216004,7.84,204.12,204.05,3.85089806]
[1757041216213,7.84,204.12,204.06,3.85089806]
[1757041216407,7.84,204.12,204.07,3.85089806]
[1757041216617,7.84,204.12,204.04,0.22]
[1757041216914,7.84,204.12,204.05,3.8514775]
[1757041217116,7.84,204.12,204.06,3.8514775]
[1757041217309,1.35296966,204.13,204.07,3.8514775]
[1757041217509,7.84,204.12,204.05,0.22]
[1757041217710,7.84,204.12,204.06,3.85209454]
[1757041217910,7.84,204.12,204.07,3.85209454]
[1757041217911,7.87,204.12,204.07,3.85209454]
[1757041218113,7.87,204.12,204.05,0.22]
[1757041218316,7.87,204.12,204.06,3.85202752]
[1757041218514,7.87,204.12,204.03,5.46314792]
[1757041218515,1.35296966,204.13,204.07,3.85202752]
[1757041218714,7.87,204.12,204.06,0.22]
[1757041218914,7.87,204.12,204.07,3.85220349]
[1757041219114,7.87,204.12,204.05,0.22]
[1757041219320,7.87,204.12,204.06,3.85203145]
[1757041219510,7.87,204.12,204.07,3.85203145]
[1757041219714,7.87,204.12,204.05,0.22]
[1757041219916,7.87,204.12,204.06,3.85711648]
[1757041220212,7.87,204.1,204.07,3.85711648]
[1757041220415,7.87,204.1,204.02,4.31017826]
[1757041220614,7.87,204.1,204.03,3.85835749]
[1757041220917,7.87,204.1,204.04,3.85835749]
[1757041221114,7.87,204.06,204.05,3.85835749]
[1757041221318,7.87,204.06,204.04,0.03650947]
[1757041221612,9.22296966,204.05,204.04,0.03650947]
[1757041222916,7.87,204.05,204.04,0.03650947]
[1757041228627,7.87,204.05,203.96,0.2]
[1757041228821,1.35296966,204.04,203.96,0.2]
[1757041229021,7.87,204.03,203.96,0.2]
[1757041229924,0.03261337,204.02,203.96,0.2]
[1757041232028,9.22296966,204.01,203.93,4.35017826]
[1757041232229,1.35296966,203.99,203.93,0.24]
[1757041232532,7.87,204.01,203.9,1.59296966]
[1757041232732,7.87,203.97,203.9,1.59296966]
[1757041232934,7.87,203.97,203.9,0.24]
[1757041233127,0.03626589,203.96,203.9,0.24]
[1757041233328,0.03626589,203.96,203.9,1.59296966]
[1757041235034,0.03626589,203.96,203.9,0.24]
[1757041235334,0.03626589,203.96,203.9,1.59296966]
[1757041236931,7.90626589,203.96,203.9,1.59296966]
[1757041237732,7.90626589,203.96,203.9,0.24]
[1757041238436,1.35296966,203.95,203.9,0.24]
[1757041238638,7.87,203.94,203.87,0.24]
[1757041239233,0.03539931,203.93,203.87,0.24]
[1757041243949,0.03539931,203.93,203.86,1.35296966]
[1757041243950,7.87,203.92,203.86,1.35296966]
[1757041244136,7.87,203.92,203.86,1.59296966]
[1757041245546,7.87,203.92,203.86,0.24]
[1757041253949,0.03539931,203.93,203.86,2.35711439]
[1757041254153,0.03539931,203.93,203.87,0.27]
[1757041254355,0.03539931,203.93,203.91,0.27]
[1757041254551,0.03539931,203.93,203.9,0.27]
[1757041254750,0.03539931,203.93,203.89,2.11711439]
[1757041254946,0.03539931,203.93,203.91,0.27]
[1757041255148,0.03539931,203.93,203.9,0.27]
[1757041255354,0.03539931,203.93,203.89,2.11711439]
[1757041255550,0.03539931,203.93,203.9,0.27]
[1757041255756,0.03539931,203.93,203.92,2.38711439]
[1757041255953,7.61,203.99,203.92,2.11711439]
[1757041256250,7.61,203.99,203.93,0.27]
[1757041256455,7.61,203.99,203.94,120.18]
[1757041256652,7.61,203.99,203.95,0.27]
[1757041257148,7.64367805,203.99,203.95,0.30320833]
[1757041257346,7.64367805,203.99,203.95,0.03320833]
[1757041257651,7.64367805,203.99,203.96,0.27]
[1757041259354,0.03367805,203.99,203.95,0.03320833]
[1757041259559,0.03367805,203.99,203.98,2.38711439]
[1757041260957,22.95387216,204.18,203.99,0.27]
[1757041260958,7.61,204.07,203.99,0.27]
[1757041261159,7.61,204.07,204.0,120.16]
[1757041262055,7.61,204.07,204.01,0.03661393]
[1757041270166,7.61,204.07,204.01,2.15372832]
[1757041270769,7.61,204.07,204.02,0.27]
[1757041270957,7.61,204.17,204.02,0.27]
[1757041271567,7.61,204.17,204.07,0.03428721]
[1757041278174,7.66,204.14,204.07,0.03428721]
[1757041282178,7.66,204.14,203.99,2.11711439]
[1757041282871,7.66,204.11,203.98,0.26]
[1757041283175,7.66,204.08,203.95,0.3]
[1757041287276,2.11711439,204.06,203.93,2.11711439]
[1757041287476,7.66,204.05,203.93,2.11711439]
[1757041288174,7.66,204.05,203.94,0.3]
[1757041291780,7.66,204.05,203.94,2.41711439]
[1757041295275,7.66,204.01,203.9,4.39634614]
[1757041295581,7.66,204.01,203.9,0.3]
[1757041296077,7.66,204.01,203.93,0.3]
[1757041296679,7.66,204.07,203.96,0.3]
[1757041297179,7.66,204.07,203.99,0.3]
[1757041298074,7.66,204.14,204.02,0.3]
[1757041300982,7.66,204.14,204.05,0.3]
[1757041301182,7.66,204.11,203.98,4.09634614]
[1757041301376,7.66,204.11,203.97,2.11711439]
[1757041301985,7.66,204.11,203.98,0.3]
[1757041304284,7.66,204.11,204.0,2.11711439]
[1757041304587,7.66,204.11,204.01,0.3]
[1757041307489,7.66,204.11,204.05,1.35258428]
[1757041309281,7.66,204.11,204.03,1.35258428]
[1757041310686,7.66,204.11,204.02,1.35258428]
[1757041315592,8.05,204.09,204.02,1.35258428]
[1757041315787,8.05,204.09,203.98,44.72634614]
[1757041315788,8.05,204.07,203.98,1.35258428]
[1757041317392,1.35258428,204.06,203.98,1.35258428]
[1757041317588,8.05,204.05,203.98,1.35258428]
[1757041319094,8.05,204.05,203.96,1.35258428]
[1757041319294,8.05,204.03,203.96,1.35258428]
[1757041319691,8.05,204.03,203.94,1.35258428]
[1757041319887,8.05,204.03,203.97,0.03428272]
[1757041330403,8.05,204.03,203.97,0.32428272]
[1757041330603,8.05,204.03,203.97,1.676867]
[1757041332104,0.03741722,204.04,203.97,1.386867]
[1757041332309,0.03741722,204.04,204.01,1.64258428]
[1757041332505,0.03741722,204.04,204.01,1.35258428]
[1757041332506,8.05,204.03,204.01,1.35258428]
[1757041333310,0.03741722,204.04,203.99,1.35258428]
[1757041334008,8.05,204.03,203.99,1.35258428]
[1757041334209,0.03741722,204.04,203.99,1.35258428]
[1757041334712,8.05,204.03,203.99,1.35258428]
[1757041335105,0.03741722,204.04,203.99,1.35258428]
[1757041335313,8.05,204.0,203.89,4.09634614]
[1757041335604,8.05,203.98,203.91,1.35258428]
[1757041336006,8.05,203.98,203.92,0.33]
[1757041336711,0.03281769,203.97,203.94,0.33]
[1757041337110,8.05,204.02,203.94,0.33]
[1757041337310,0.03312906,203.98,203.95,0.33]
[1757041337513,0.03312906,203.98,203.94,0.33]
[1757041337905,0.03312906,203.98,203.95,0.33]
[1757041338105,7.83,203.97,203.93,1.68258428]
[1757041339320,7.86312906,203.98,203.91,1.35258428]
[1757041342411,9.21571334,203.98,203.89,1.35258428]
[1757041342613,1.38571334,203.98,203.86,59.36634614]
[1757041342806,7.83,203.95,203.87,1.35258428]
[1757041343007,0.03578466,203.94,203.87,1.35258428]
[1757041343616,7.83,203.93,203.87,1.35258428]
[1757041344511,7.83,203.93,203.86,55.27]
[1757041344713,7.83,203.93,203.87,1.35258428]
[1757041345513,7.83,203.93,203.88,0.03435504]
[1757041348114,1.38836894,203.94,203.88,0.03435504]
[1757041348512,7.83,203.93,203.88,0.03435504]
[1757041348912,1.38836894,203.94,203.88,0.03435504]
[1757041349207,7.83,203.93,203.88,0.03435504]
[1757041349917,7.86578466,203.94,203.9,0.33]
[1757041350317,7.86578466,203.94,203.91,1.35258428]
[1757041351119,7.83,203.93,203.91,1.35258428]
[1757041353620,7.83,203.93,203.9,0.33]
[1757041355920,0.03578466,203.94,203.91,1.35258428]
[1757041356122,7.86578466,203.94,203.91,1.68258428]
[1757041357426,7.83,203.93,203.91,1.35258428]
[1757041359428,0.03578466,203.94,203.91,1.35258428]
[1757041359829,7.83,203.93,203.91,1.35258428]
[1757041361822,7.86578466,203.94,203.88,1.38693932]
[1757041363634,7.86578466,203.94,203.88,0.03435504]
[1757041366737,9.21836894,203.94,203.88,0.03435504]
[1757041367538,7.86578466,203.94,203.88,0.03435504]
[1757041374642,9.98339442,203.94,203.88,0.03435504]
[1757041375040,2.11760976,203.91,203.78,4.09634614]
[1757041375244,14.14760976,203.9,203.75,0.39]
[1757041375541,24.26760976,203.9,203.75,0.39]
[1757041376446,7.41,203.84,203.75,0.39]
[1757041377345,7.41,203.84,203.72,0.39]
[1757041377746,9.52760976,203.84,203.72,0.39]
[1757041377942,0.03266203,203.8,203.72,0.39]
[1757041378143,7.41,203.79,203.72,0.39]
[1757041379045,7.41,203.79,203.68,4.44]
[1757041379345,7.41,203.79,203.68,6.55760976]
[1757041379549,0.03698876,203.76,203.68,6.55760976]
[1757041379748,7.44698876,203.76,203.68,6.55760976]
[1757041380150,7.44698876,203.76,203.69,0.39]
[1757041380449,0.03698876,203.76,203.69,0.39]
[1757041383953,0.03698876,203.76,203.73,0.39]
[1757041384152,0.03698876,203.76,203.71,2.11760976]
[1757041384353,0.03698876,203.76,203.72,0.39]
[1757041384556,0.03698876,203.76,203.71,2.11760976]
[1757041384756,0.03698876,203.76,203.75,0.39]
[1757041386556,0.03698876,203.76,203.72,0.39]
[1757041386754,7.44698876,203.76,203.72,0.39]
[1757041388652,0.03698876,203.76,203.72,0.39]
[1757041389050,0.03698876,203.76,203.71,2.11760976]
[1757041389651,0.03698876,203.76,203.72,0.39]
[1757041389852,0.03698876,203.76,203.73,0.39]
[1757041390453,0.03698876,203.76,203.68,4.44]
[1757041390454,0.03698876,203.76,203.69,0.39]
[1757041390658,0.03698876,203.76,203.72,0.39]
[1757041390858,0.03698876,203.76,203.73,0.39]
[1757041392152,0.03698876,203.76,203.71,0.39]
[1757041392153,7.41,203.75,203.71,0.39]
[1757041395273,0.03698876,203.76,203.71,2.11760976]
[1757041395562,0.03698876,203.76,203.72,0.39]
[1757041395967,7.44698876,203.76,203.72,0.39]
[1757041397963,0.03698876,203.76,203.72,0.35]
[1757041398164,7.75,203.81,203.69,68.7262]
[1757041398165,7.75,203.81,203.75,0.35]
[1757041398863,7.75,203.81,203.68,4.42564107]
[1757041399055,9.86760976,203.81,203.68,0.35]
[1757041399461,7.75,203.76,203.68,0.35]
[1757041404568,0.03434458,203.77,203.7,0.37]
[1757041405668,0.03434458,203.77,203.73,0.37]
[1757041405871,0.03434458,203.77,203.75,2.11760976]
[1757041406168,0.03434458,203.77,203.76,0.37]
[1757041406767,7.75,203.76,203.7,0.37]
[1757041406968,7.75,203.76,203.7,2.48760976]
[1757041408264,0.03434458,203.77,203.71,0.37]
[1757041408471,0.03434458,203.77,203.74,0.37]
[1757041409572,0.03434458,203.77,203.75,0.37]
[1757041412867,0.03434458,203.77,203.76,2.11760976]
[1757041413074,7.75,203.83,203.76,2.48760976]
[1757041414068,7.75,203.83,203.76,37.50760976]
[1757041416072,7.75,203.83,203.76,37.13760976]